bitfinex/quotes_BTCUSD_20250907
["timestamp","ask_amount","ask_price","bid_price","bid_amount"]
[1757247315615,0.16856934,111130.0,111120.0,0.36948]
[1757247316849,0.16856934,111130.0,111120.0,0.22008]
[1757247317188,0.16856934,111130.0,111120.0,0.36944]
[1757247318319,0.16856934,111130.0,111120.0,0.22008]
[1757247318638,0.16856934,111130.0,111120.0,0.36944]
[1757247321272,0.16856934,111130.0,111120.0,0.22008]
[1757247321416,0.16856934,111130.0,111120.0,0.36952]
[1757247326192,0.16856934,111130.0,111120.0,0.36948]
[1757247327673,0.16856934,111130.0,111120.0,0.22008]
[1757247327829,0.16856934,111130.0,111120.0,0.36952]
[1757247328652,0.16856934,111130.0,111120.0,0.22008]
[1757247328854,0.16856934,111130.0,111120.0,0.36952]
[1757247329057,0.16856934,111130.0,111120.0,0.56952]
[1757247333540,0.16856934,111130.0,111120.0,0.42008]
[1757247333848,0.16856934,111130.0,111120.0,0.56956]
[1757247335348,0.16856934,111130.0,111120.0,0.36956]
[1757247335757,0.1800018,111110.0,111100.0,0.36624]
[1757247336064,0.1800018,111110.0,111100.0,0.58488]
[1757247336065,0.1851518,111110.0,111100.0,0.58488]
[1757247336467,0.21215898,111110.0,111100.0,0.58488]
[1757247337114,0.21215898,111110.0,111100.0,0.58688]
[1757247337328,0.21215898,111110.0,111100.0,0.58788]
[1757247337608,0.21215898,111110.0,111100.0,0.58588]
[1757247338713,0.25297099,111110.0,111100.0,0.58588]
[1757247343278,0.25297099,111110.0,111100.0,0.58604]
[1757247353541,0.25297099,111110.0,111100.0,0.43632]
[1757247353730,0.25297099,111110.0,111100.0,0.58608]
[1757247353927,0.25297099,111110.0,111100.0,0.58508]
[1757247354593,0.25397099,111110.0,111100.0,0.58508]
[1757247355510,0.25497099,111110.0,111100.0,0.58508]
[1757247356343,0.25497099,111110.0,111100.0,0.21948]
[1757247356551,0.25497099,111110.0,111100.0,0.36952]
[1757247359446,0.25497099,111110.0,111100.0,0.21948]
[1757247359705,0.25497099,111110.0,111100.0,0.36952]
[1757247360351,0.59497099,111110.0,111100.0,0.36952]
[1757247360573,0.59497099,111110.0,111100.0,0.06948]
[1757247360797,0.61431963,111110.0,111100.0,0.21972]
[1757247361228,0.61431971,111110.0,111100.0,0.21972]
[1757247361892,0.61431971,111110.0,111100.0,0.06948]
[1757247362094,0.61431971,111110.0,111100.0,0.21972]
[1757247362497,0.66431971,111110.0,111100.0,0.06948]
[1757247362740,0.61431971,111110.0,111100.0,0.21972]
[1757247362912,0.66431971,111110.0,111100.0,0.21972]
[1757247363668,0.77717452,111110.0,111100.0,0.06948]
[1757247364118,0.86051944,111110.0,111100.0,0.2198]
[1757247364480,0.77717452,111110.0,111100.0,0.2198]
[1757247370168,0.77717452,111110.0,111080.0,0.21948]
[1757247370169,0.34,111090.0,111080.0,0.21948]
[1757247370388,0.5252942,111090.0,111080.0,0.3698]
[1757247370947,0.55230834,111090.0,111080.0,0.3698]
[1757247371084,0.55230834,111090.0,111080.0,0.36984]
[1757247371482,0.55230834,111090.0,111080.0,0.37030434]
[1757247371688,0.55230834,111090.0,111080.0,0.37130434]
[1757247372238,0.55230834,111090.0,111080.0,0.22030434]
[1757247373270,0.55230834,111090.0,111080.0,0.22230434]
[1757247373684,0.60230834,111090.0,111080.0,0.22026434]
[1757247373886,0.62161848,111090.0,111080.0,0.22026434]
[1757247374050,0.62161848,111090.0,111080.0,0.22126434]
[1757247378510,0.28161848,111090.0,111080.0,0.22126434]
[1757247378741,0.26230834,111090.0,111080.0,0.22126434]
[1757247379335,0.18005041,111080.0,111070.0,0.06948]
[1757247379523,0.18531041,111080.0,111070.0,0.21972]
[1757247379936,0.21232715,111080.0,111070.0,0.21972]
[1757247381697,0.21232715,111080.0,111070.0,0.22172]
[1757247382314,0.21232715,111080.0,111070.0,0.22272]
[1757247383742,0.22131702,111080.0,111070.0,0.22272]
[1757247384541,0.26199836,111080.0,111070.0,0.22272]
[1757247391381,0.25300849,111080.0,111070.0,0.22272]
[1757247392495,0.25300849,111080.0,111070.0,0.07248]
[1757247392704,0.25300849,111080.0,111070.0,0.22268]
[1757247392908,0.25300849,111080.0,111070.0,0.22264]
[1757247393326,0.26197192,111080.0,111070.0,0.07248]
[1757247393535,0.26197192,111080.0,111070.0,0.22264]
[1757247396231,0.26197192,111080.0,111070.0,0.07248]
[1757247396431,0.26197192,111080.0,111070.0,0.22264]
[1757247397446,0.26197192,111080.0,111070.0,0.21964]
[1757247397806,0.26197192,111080.0,111070.0,0.06948]
[1757247398012,0.26197192,111080.0,111070.0,0.2196]
[1757247399612,0.26197192,111080.0,111070.0,0.06948]
[1757247399808,0.26197192,111080.0,111070.0,0.2196]
[1757247403936,0.26197192,111080.0,111070.0,0.06948]
[1757247404142,0.26197192,111080.0,111070.0,0.21952]
[1757247406508,0.26197192,111080.0,111070.0,0.06948]
[1757247406814,0.26197192,111080.0,111070.0,0.21952]
[1757247408530,0.26197192,111080.0,111070.0,0.06948]
[1757247408836,0.18006662,111070.0,111060.0,0.06952]
[1757247409105,0.18531662,111070.0,111060.0,0.21952]
[1757247409274,0.57531662,111070.0,111060.0,0.21952]
[1757247409482,0.62169903,111070.0,111060.0,0.21952]
[1757247410865,0.62169903,111070.0,111060.0,0.06952]
[1757247411068,0.62269903,111070.0,111060.0,0.21952]
[1757247412912,0.18008283,111060.0,111050.0,0.0004]
[1757247413221,0.18008283,111060.0,111050.0,0.15036]
[1757247413409,0.18533283,111060.0,111050.0,0.15036]
[1757247413624,0.21235537,111060.0,111050.0,0.35036]
[1757247430036,0.18533283,111060.0,111050.0,0.35036]
[1757247434547,0.18533283,111060.0,111050.0,0.35238]
[1757247434548,0.18008283,111060.0,111050.0,0.35238]
[1757247434750,0.18008283,111060.0,111050.0,0.59723599]
[1757247434927,0.18008283,111060.0,111050.0,0.77733504]
[1757247435124,0.18008283,111060.0,111050.0,0.80435178]
[1757247435762,0.18008283,111060.0,111050.0,0.82706178]
[1757247436183,0.18008283,111060.0,111050.0,0.67710178]
[1757247436420,0.18008283,111060.0,111050.0,0.82698178]
[1757247439057,0.18006662,111070.0,111060.0,0.18008283]
[1757247439261,0.22973427,111080.0,111070.0,0.35]
[1757247439460,0.22973427,111080.0,111070.0,0.57098]
[1757247439669,0.22973427,111080.0,111070.0,0.57392]
[1757247440023,0.22973427,111080.0,111070.0,0.60093411]
[1757247440247,0.22973427,111080.0,111070.0,0.6928501]
[1757247441537,0.23073427,111080.0,111070.0,0.6928501]
[1757247442933,0.23273427,111080.0,111070.0,0.6928501]
[1757247443063,0.23173427,111080.0,111070.0,0.6928501]
[1757247443259,0.22973427,111080.0,111070.0,0.6928501]
[1757247443468,0.22973427,111080.0,111070.0,0.5430101]
[1757247444318,0.23175427,111080.0,111070.0,0.6899501]
[1757247444543,0.23469427,111080.0,111070.0,0.6899501]
[1757247447190,0.23469427,111080.0,111070.0,0.5400701]
[1757247447338,0.23469427,111080.0,111070.0,0.6899501]
[1757247447966,0.19401293,111080.0,111070.0,0.6899501]
[1757247449441,0.1414786,111080.0,111070.0,0.6899501]
[1757247451598,0.18218423,111080.0,111070.0,0.6899501]
[1757247452022,0.18218423,111080.0,111070.0,0.5400701]
[1757247452238,0.18218423,111080.0,111070.0,0.6899101]
[1757247455959,0.18218423,111080.0,111070.0,0.5400701]
[1757247456169,0.18218423,111080.0,111070.0,0.6898701]
[1757247459325,0.18218423,111080.0,111070.0,0.39589411]
[1757247459558,0.18218423,111080.0,111070.0,0.36888]
[1757247460661,0.18318423,111080.0,111070.0,0.36888]
[1757247461079,0.21019903,111080.0,111070.0,0.36888]
[1757247462942,0.21119903,111080.0,111070.0,0.36888]
[1757247465736,0.18418423,111080.0,111070.0,0.36888]
[1757247467738,0.18418423,111080.0,111070.0,0.70888]
[1757247468823,0.1434786,111080.0,111070.0,0.70888]
[1757247470451,0.18387251,111080.0,111070.0,0.70888]
[1757247475823,0.18387251,111080.0,111070.0,0.36888]
[1757247487379,0.18387251,111080.0,111070.0,0.21912]
[1757247487577,0.18387251,111080.0,111070.0,0.36872]
[1757247491984,0.19119765,111080.0,111070.0,0.36872]
[1757247493123,0.23219071,111080.0,111070.0,0.36872]
[1757247499786,0.23219071,111080.0,111070.0,0.70872]
[1757247504551,0.23219071,111080.0,111070.0,0.71087]
[1757247504790,0.23007071,111080.0,111070.0,0.7141]
[1757247505107,0.02395121,111080.0,111070.0,0.7141]
[1757247505305,0.18007513,111080.0,111070.0,0.7141]
[1757247505771,0.18007513,111080.0,111070.0,0.3741]
[1757247505977,0.18907765,111080.0,111070.0,0.3741]
[1757247506834,0.18907765,111080.0,111070.0,0.5741]
[1757247507449,0.22954038,111080.0,111070.0,0.5741]
[1757247511627,0.18907765,111080.0,111070.0,0.69057599]
[1757247512067,0.18907765,111080.0,111070.0,0.72669597]
[1757247512761,0.18907765,111080.0,111070.0,0.72769597]
[1757247513099,0.18907765,111080.0,111070.0,0.72869597]
[1757247513311,0.18907765,111080.0,111070.0,1.06869597]
[1757247514653,0.18007513,111080.0,111070.0,1.06869597]
[1757247515116,0.18907765,111080.0,111070.0,1.06869597]
[1757247517645,0.18907765,111080.0,111070.0,0.91909597]
[1757247517864,0.18907765,111080.0,111070.0,1.06869597]
[1757247518990,0.18907765,111080.0,111070.0,0.72869597]
[1757247519416,0.18907765,111080.0,111070.0,0.70168387]
[1757247521856,0.22992092,111080.0,111070.0,0.70168387]
[1757247526541,0.22992092,111080.0,111070.0,0.72869597]
[1757247528062,0.22992092,111080.0,111070.0,0.57909597]
[1757247528506,0.22992092,111080.0,111070.0,0.72869597]
[1757247531545,0.22992092,111080.0,111070.0,0.57909597]
[1757247531764,0.22992092,111080.0,111070.0,0.72869597]
[1757247539055,0.18907765,111080.0,111070.0,0.72869597]
[1757247541447,0.23049983,111080.0,111070.0,0.72869597]
[1757247550693,0.23049983,111080.0,111070.0,0.72865597]
[1757247554221,0.23049983,111080.0,111070.0,0.71954809]
[1757247556615,0.23549983,111080.0,111070.0,0.71954809]
[1757247558174,0.23549983,111080.0,111070.0,0.72860101]
[1757247558384,0.23049983,111080.0,111070.0,0.57860101]
[1757247559238,0.23049983,111080.0,111070.0,0.56954809]
[1757247559474,0.23264983,111080.0,111070.0,0.324352]
[1757247559695,0.23572983,111080.0,111070.0,0.473912]
[1757247559912,0.23572983,111080.0,111070.0,0.4468999]
[1757247560130,0.26274448,111080.0,111070.0,0.4468999]
[1757247560560,0.19430765,111080.0,111070.0,0.4458999]
[1757247561042,0.19430765,111080.0,111070.0,0.47291455]
[1757247562196,0.19430765,111080.0,111070.0,0.47191455]
[1757247565129,0.23554766,111080.0,111070.0,0.47191455]
[1757247567421,0.23554766,111080.0,111070.0,0.24613465]
[1757247567634,0.23554766,111080.0,111070.0,0.21912]
[1757247567846,0.26256402,111080.0,111070.0,0.36868]
[1757247569400,0.26456402,111080.0,111070.0,0.36868]
[1757247572764,0.04752554,111080.0,111070.0,0.36868]
[1757247572996,0.22760067,111080.0,111070.0,0.36868]
[1757247573202,0.23660319,111080.0,111070.0,0.36868]
[1757247578875,0.23660319,111080.0,111070.0,0.36868]
[1757247579303,0.23660319,111080.0,111070.0,0.21912]
[1757247579522,0.23660319,111080.0,111070.0,0.36868]
[1757247580696,0.349458,111080.0,111070.0,0.36868]
[1757247584502,0.689458,111080.0,111070.0,0.36868]
[1757247584745,0.75881081,111080.0,111070.0,0.36868]
[1757247584958,0.75881081,111080.0,111070.0,0.06912]
[1757247585167,0.75881081,111080.0,111070.0,0.21868]
[1757247587246,0.75881081,111080.0,111070.0,0.06912]
[1757247587471,0.75881081,111080.0,111070.0,0.21868]
[1757247589314,0.75881081,111080.0,111070.0,0.06912]
[1757247589512,0.75881081,111080.0,111070.0,0.21868]
[1757247591429,0.41881081,111080.0,111070.0,0.21868]
[1757247591642,0.399458,111080.0,111070.0,0.21868]
[1757247601523,0.739458,111080.0,111070.0,0.21868]
[1757247601718,0.75881081,111080.0,111070.0,0.21868]
[1757247606411,0.41881081,111080.0,111070.0,0.21868]
[1757247606656,0.399458,111080.0,111070.0,0.21868]
[1757247608422,0.28660319,111080.0,111070.0,0.21868]
[1757247608632,0.23660319,111080.0,111070.0,0.37382]
[1757247609282,0.23660319,111080.0,111070.0,0.37165]
[1757247609500,0.28660319,111080.0,111070.0,0.37165]
[1757247610158,0.23660319,111080.0,111070.0,0.37382]
[1757247620482,0.23660319,111080.0,111070.0,0.37165]
[1757247621498,0.23660319,111080.0,111070.0,0.37382]
[1757247627000,0.23660319,111080.0,111070.0,0.4500399]
[1757247638229,0.00900252,111080.0,111070.0,0.4500399]
[1757247638445,0.18907765,111080.0,111070.0,0.4500399]
[1757247638670,0.21609478,111080.0,111070.0,0.4498699]
[1757247639476,0.21609478,111080.0,111070.0,0.4478699]
[1757247640129,0.18907765,111080.0,111070.0,0.4478699]
[1757247640334,0.18907765,111080.0,111070.0,0.4478299]
[1757247641007,0.23039457,111080.0,111070.0,0.4478299]
[1757247645177,0.23043457,111080.0,111070.0,0.4478299]
[1757247646541,0.23043457,111080.0,111070.0,0.47484704]
[1757247648216,0.23043457,111080.0,111070.0,0.4478299]
[1757247648657,0.2574517,111080.0,111070.0,0.4478299]
[1757247648885,0.2574517,111080.0,111070.0,0.4498299]
[1757247656263,0.2574517,111080.0,111070.0,0.3003099]
[1757247656449,0.2574517,111080.0,111070.0,0.4498299]
[1757247657787,0.23043457,111080.0,111070.0,0.4498299]
[1757247658154,0.23043457,111080.0,111070.0,0.47684704]
[1757247660678,0.17790497,111080.0,111070.0,0.4498299]
[1757247661097,0.18690749,111080.0,111070.0,0.4498299]
[1757247666356,0.21392463,111080.0,111070.0,0.4498299]
[1757247669622,0.21392463,111080.0,111070.0,0.4448199]
[1757247669833,0.21392463,111080.0,111070.0,0.2953399]
[1757247670050,0.21392463,111080.0,111070.0,0.4448199]
[1757247672027,0.21388463,111080.0,111070.0,0.4448199]
[1757247675832,0.21388463,111080.0,111070.0,0.4479699]
[1757247676562,0.21388463,111080.0,111070.0,0.4448199]
[1757247680840,0.21388463,111080.0,111070.0,0.4479699]
[1757247685411,0.21388463,111080.0,111070.0,0.4489699]
[1757247686405,0.00907268,111080.0,111070.0,0.4489699]
[1757247686613,0.18914781,111080.0,111070.0,0.4489699]
[1757247687040,0.19815033,111080.0,111070.0,0.4489699]
[1757247688283,0.23937414,111080.0,111070.0,0.4489699]
[1757247695181,0.23937414,111080.0,111070.0,0.4458199]
[1757247703258,0.33129013,111080.0,111070.0,0.6457799]
[1757247703473,0.33129013,111080.0,111070.0,0.5766599]
[1757247726191,0.33129013,111080.0,111070.0,0.5797599]
[1757247726635,0.33129013,111080.0,111070.0,0.5817499]
[1757247727071,0.23937414,111080.0,111070.0,0.5817499]
[1757247728233,0.23937414,111080.0,111070.0,0.5797599]
[1757247730613,0.23937414,111080.0,111070.0,0.6488799]
[1757247735381,0.23937414,111080.0,111070.0,0.5797599]
[1757247740050,0.23937414,111080.0,111070.0,0.5817999]
[1757247740460,0.23937414,111080.0,111070.0,0.5797599]
[1757247744839,0.23937414,111080.0,111070.0,0.5817999]
[1757247746158,0.23937414,111080.0,111070.0,0.5797599]
[1757247753655,0.57937414,111080.0,111070.0,0.5797599]
[1757247754102,0.59872695,111080.0,111070.0,0.5797599]
[1757247754696,0.59872695,111080.0,111070.0,0.6488799]
[1757247759666,0.59872695,111080.0,111070.0,0.4994399]
[1757247759828,0.59872695,111080.0,111070.0,0.6488399]
[1757247762721,0.59872695,111080.0,111070.0,0.6508899]
[1757247766941,0.59872695,111080.0,111070.0,0.5014899]
[1757247767152,0.59872695,111080.0,111070.0,0.6508499]
[1757247769122,0.59872695,111080.0,111070.0,0.5014899]
[1757247769304,0.59872695,111080.0,111070.0,0.6508499]
[1757247771046,0.59872695,111080.0,111070.0,0.5014899]
[1757247771227,0.59872695,111080.0,111070.0,0.6508499]
[1757247775009,0.59876925,111080.0,111070.0,0.6508499]
[1757247780527,0.25876925,111080.0,111070.0,0.6508499]
[1757247780740,0.23937414,111080.0,111070.0,0.6508499]
[1757247787628,0.18684454,111080.0,111070.0,0.6508499]
[1757247787829,0.2138615,111080.0,111070.0,0.6508499]
[1757247792783,0.03157584,111080.0,111070.0,0.6508499]
[1757247793219,0.22065349,111080.0,111070.0,0.6508499]
[1757247797262,0.22065349,111080.0,111070.0,0.6508099]
[1757247798176,0.22065349,111080.0,111070.0,0.5014899]
[1757247798416,0.22065349,111080.0,111070.0,0.6508099]
[1757247801710,0.22065349,111080.0,111070.0,0.6487599]
[1757247802376,0.22065349,111080.0,111070.0,0.6509099]
[1757247813352,0.22065349,111080.0,111070.0,0.65998789]
[1757247819238,0.02701696,111080.0,111070.0,0.65998789]
[1757247819456,0.20706737,111080.0,111070.0,0.84005451]
[1757247819702,0.15086416,111090.0,111070.0,0.84005451]
[1757247819945,0.17787903,111090.0,111080.0,0.15477063]
[1757247820184,0.17787903,111090.0,111080.0,0.15676063]
[1757247823021,0.17887903,111090.0,111080.0,0.15676063]
[1757247827228,0.15186416,111090.0,111080.0,0.15676063]
[1757247830426,0.15186416,111090.0,111080.0,0.15451]
[1757247832297,0.17887903,111090.0,111080.0,0.15451]
[1757247833470,0.51887903,111090.0,111080.0,0.15451]
[1757247837464,0.51887903,111090.0,111080.0,0.15676063]
[1757247838639,0.17887903,111090.0,111080.0,0.15451]
[1757247841000,0.17887903,111090.0,111080.0,0.15676063]
[1757247849802,0.15186416,111090.0,111080.0,0.15672063]
[1757247850060,0.15186416,111090.0,111080.0,0.00744063]
[1757247850252,0.15186416,111090.0,111080.0,0.15672063]
[1757247850452,0.15186416,111090.0,111080.0,0.15447]
[1757247852677,0.15186416,111090.0,111080.0,0.15672063]
[1757247853883,0.15186416,111090.0,111080.0,0.33677104]
[1757247854103,0.15186416,111090.0,111080.0,0.33452041]
[1757247854715,0.15186416,111090.0,111080.0,0.15447]
[1757247854941,0.15186416,111090.0,111080.0,0.33677104]
[1757247855190,0.15186416,111090.0,111080.0,0.33452041]
[1757247855427,0.15186416,111090.0,111080.0,0.18148363]
[1757247855647,0.15186416,111090.0,111080.0,0.36153404]
[1757247855770,0.15186416,111090.0,111080.0,0.18148363]
[1757247863216,0.15186416,111090.0,111080.0,0.15447]
[1757247863422,0.15186416,111090.0,111080.0,0.15672063]
[1757247863926,0.15186416,111090.0,111080.0,0.33677104]
[1757247864164,0.15186416,111090.0,111080.0,0.18524041]
[1757247864366,0.15186416,111090.0,111080.0,0.33452041]
[1757247864567,0.15186416,111090.0,111080.0,0.00519]
[1757247864783,0.15186416,111090.0,111080.0,0.15672063]
[1757247865455,0.15186416,111090.0,111080.0,0.22584063]
[1757247865665,0.15186416,111090.0,111080.0,0.22359]
[1757247865900,0.15186416,111090.0,111080.0,0.40364041]
[1757247867839,0.00146458,111090.0,111080.0,0.40364041]
[1757247868904,0.00146458,111090.0,111080.0,0.42783041]
[1757247869335,0.00146458,111090.0,111080.0,0.4548425]
[1757247871885,0.00146458,111090.0,111080.0,0.42783041]
[1757247882219,0.15597279,111100.0,111090.0,0.6062541]
[1757247882607,0.1560192,111100.0,111090.0,0.6114041]
[1757247885259,0.1570192,111100.0,111090.0,0.6114041]
[1757247885694,0.1590192,111100.0,111090.0,0.6114041]
[1757247887140,0.20139113,111110.0,111090.0,0.6114041]
[1757247887334,0.63330712,111110.0,111100.0,0.15233]
[1757247887588,0.65267652,111110.0,111100.0,0.15233]
[1757247888556,0.65567652,111110.0,111100.0,0.15233]
[1757247888753,0.65667652,111110.0,111100.0,0.15439]
[1757247889318,0.65567652,111110.0,111100.0,0.15439]
[1757247889876,0.65767652,111110.0,111100.0,0.15439]
[1757247892851,0.65767652,111110.0,111100.0,0.15233]
[1757247894987,0.56576053,111110.0,111100.0,0.15439]
[1757247895221,0.56576526,111110.0,111100.0,0.15439]
[1757247897136,0.56576526,111110.0,111100.0,0.15664022]
[1757247899624,0.56376526,111110.0,111100.0,0.15664022]
[1757247899936,0.56476526,111110.0,111100.0,0.15664022]
[1757247900371,0.56376526,111110.0,111100.0,0.15664022]
[1757247900575,0.56076526,111110.0,111100.0,0.15664022]
[1757247901475,0.56176526,111110.0,111100.0,0.15664022]
[1757247901913,0.2128901,111110.0,111100.0,0.15664022]
[1757247902135,0.19351597,111110.0,111100.0,0.15664022]
[1757247902888,0.19451597,111110.0,111100.0,0.15664022]
[1757247903110,0.19451597,111110.0,111100.0,0.33665822]
[1757247903354,0.19451597,111110.0,111100.0,0.334408]
[1757247903544,0.19451597,111110.0,111100.0,0.15439]
[1757247903681,0.19451597,111110.0,111100.0,0.15664022]
[1757247904991,0.19451597,111110.0,111100.0,0.22572022]
[1757247905200,0.19451597,111110.0,111100.0,0.22347]
[1757247905422,0.19451597,111110.0,111100.0,0.07423]
[1757247905642,0.19451597,111110.0,111100.0,0.21832]
[1757247905930,0.19451597,111110.0,111100.0,0.22141]
[1757247907779,0.19451597,111110.0,111100.0,0.22137]
[1757247913081,0.53451597,111110.0,111100.0,0.22137]
[1757247913255,0.5538901,111110.0,111100.0,0.22137]
[1757247915420,0.2138901,111110.0,111100.0,0.22137]
[1757247915645,0.19451597,111110.0,111100.0,0.22137]
[1757247917452,0.02299057,111110.0,111100.0,0.403458]
[1757247917653,0.2030165,111110.0,111100.0,0.403458]
[1757247918188,0.21201659,111110.0,111100.0,0.403458]
[1757247919374,0.25212034,111110.0,111100.0,0.403458]
[1757247925218,0.25212034,111110.0,111100.0,0.22344]
[1757247925431,0.25212034,111110.0,111100.0,0.403458]
[1757247929566,0.25212034,111110.0,111100.0,0.22344]
[1757247929763,0.23112977,111110.0,111100.0,0.22344]
[1757247929978,0.23112977,111110.0,111100.0,0.403458]
[1757247930190,0.23112977,111110.0,111100.0,0.43046851]
[1757247939779,0.23112977,111110.0,111100.0,0.25045051]
[1757247939993,0.23112977,111110.0,111100.0,0.43046851]
[1757247940204,0.23112977,111110.0,111100.0,0.403458]
[1757247947209,0.23112977,111110.0,111100.0,0.43046852]
[1757247947435,0.23112977,111110.0,111100.0,0.403458]
[1757247948092,0.25814029,111110.0,111100.0,0.403458]
[1757247948306,0.23112977,111110.0,111100.0,0.41236973]
[1757247948732,0.23112977,111110.0,111100.0,0.43938024]
[1757247950805,0.04910384,111110.0,111100.0,0.43938024]
[1757247951012,0.22912977,111110.0,111100.0,0.43938024]
[1757247955672,0.22912977,111110.0,111100.0,0.43046851]
[1757247956469,0.22912977,111110.0,111100.0,0.43970306]
[1757247970957,0.22912977,111110.0,111100.0,0.25968506]
[1757247971914,0.22912977,111110.0,111100.0,0.43970306]
[1757247978677,0.22912977,111110.0,111100.0,0.25968506]
[1757247979414,0.22907107,111110.0,111100.0,0.25968506]
[1757247983685,0.22907107,111110.0,111100.0,0.11048506]
[1757247983831,0.22907107,111110.0,111100.0,0.44191328]
[1757247984027,0.22907107,111110.0,111100.0,0.43966306]
[1757247985339,0.22907107,111110.0,111100.0,0.25964506]
[1757247985759,0.22907107,111110.0,111100.0,0.43966306]
[1757247989241,0.22907107,111110.0,111100.0,0.25964506]
[1757247989647,0.22907107,111110.0,111100.0,0.10125051]
[1757247989775,0.22907107,111110.0,111100.0,0.25266073]
[1757247989974,0.22907107,111110.0,111100.0,0.25041051]
[1757247993861,0.22907107,111110.0,111100.0,0.10125051]
[1757247994005,0.22907107,111110.0,111100.0,0.25266073]
[1757247994224,0.22907107,111110.0,111100.0,0.25041051]
[1757248020868,0.22907107,111110.0,111100.0,0.10125051]
[1757248021078,0.22907107,111110.0,111100.0,0.25262073]
[1757248021294,0.23699518,111120.0,111110.0,0.35]
[1757248021496,0.33732503,111120.0,111110.0,0.35]
[1757248022761,0.3821617,111120.0,111110.0,0.35]
[1757248027282,0.3821617,111120.0,111110.0,0.3532]
[1757248028346,0.3821617,111120.0,111110.0,0.35]
[1757248030466,0.19311585,111120.0,111110.0,0.35]
[1757248030647,0.37311627,111120.0,111110.0,0.35]
[1757248031088,0.38211555,111120.0,111110.0,0.35]
[1757248039598,0.38211555,111120.0,111110.0,0.3532]
[1757248040551,0.40633321,111120.0,111110.0,0.3532]
[1757248040770,0.3793227,111120.0,111110.0,0.3532]
[1757248041655,0.3793227,111120.0,111110.0,0.38021049]
[1757248051270,0.3793227,111120.0,111110.0,0.3532]
[1757248051956,0.4063332,111120.0,111110.0,0.3532]
[1757248061792,0.26313971,111120.0,111110.0,0.3532]
[1757248062416,0.26313971,111120.0,111110.0,0.38021049]
[1757248066336,0.30418277,111120.0,111110.0,0.38021049]
[1757248066955,0.30418277,111120.0,111110.0,0.52929049]
[1757248071784,0.32840043,111120.0,111110.0,0.52929049]
[1757248073745,0.33681443,111120.0,111110.0,0.52929049]
[1757248080060,0.33681431,111120.0,111110.0,0.52929049]
[1757248082644,0.33681431,111120.0,111110.0,0.52929049]
[1757248085016,0.33681431,111120.0,111110.0,0.50228]
[1757248085678,0.3638247,111120.0,111110.0,0.50228]
[1757248086250,0.36382466,111120.0,111110.0,0.50228]
[1757248087906,0.27190867,111120.0,111110.0,0.5805699]
[1757248088088,0.24489828,111120.0,111110.0,0.5805699]
[1757248088243,0.24489828,111120.0,111110.0,0.60757842]
[1757248089057,0.24489828,111120.0,111110.0,0.78758022]
[1757248089260,0.21226678,111120.0,111110.0,0.78758022]
[1757248096929,0.17122372,111120.0,111110.0,0.78758022]
[1757248098034,0.23126453,111130.0,111110.0,0.78758022]
[1757248098238,0.21545438,111130.0,111120.0,0.15199]
[1757248098447,0.20704687,111130.0,111120.0,0.15406]
[1757248098654,0.18003835,111130.0,111120.0,0.15406]
[1757248098878,0.18003835,111130.0,111120.0,0.36105293]
[1757248099304,0.18003835,111130.0,111120.0,0.18106733]
[1757248099525,0.18203835,111130.0,111120.0,0.18106733]
[1757248100646,0.18403835,111130.0,111120.0,0.36105293]
[1757248101112,0.18203835,111130.0,111120.0,0.36105293]
[1757248101537,0.22456786,111130.0,111120.0,0.36105293]
[1757248101959,0.22256786,111130.0,111120.0,0.36105293]
[1757248102175,0.22256786,111130.0,111120.0,0.43013293]
[1757248102378,0.22356786,111130.0,111120.0,0.43013293]
[1757248103071,0.22356786,111130.0,111120.0,0.25014733]
[1757248105409,0.22356786,111130.0,111120.0,0.43013293]
[1757248106079,0.22356786,111130.0,111120.0,0.25014733]
[1757248106296,0.22356786,111130.0,111120.0,0.43013293]
[1757248125618,0.18303835,111130.0,111120.0,0.43013293]
[1757248141672,0.003,111130.0,111120.0,0.43013293]
[1757248142116,0.1829694,111130.0,111120.0,0.43013293]
[1757248145316,0.003,111130.0,111120.0,0.43013293]
[1757248145529,0.1829694,111130.0,111120.0,0.43013293]
[1757248145868,0.003,111130.0,111120.0,0.43013293]
[1757248146532,0.002,111130.0,111120.0,0.43013293]
[1757248147588,0.26237004,111140.0,111130.0,0.35]
[1757248147799,0.26237004,111140.0,111130.0,0.35506]
[1757248148420,0.26237004,111140.0,111130.0,0.38206485]
[1757248149070,0.26437004,111140.0,111130.0,0.38206485]
[1757248150738,0.26237004,111140.0,111130.0,0.38206485]
[1757248151153,0.26337004,111140.0,111130.0,0.38206485]
[1757248151350,0.25496128,111140.0,111130.0,0.38206485]
[1757248151556,0.25496128,111140.0,111130.0,0.45828475]
[1757248151755,0.23074362,111140.0,111130.0,0.45828475]
[1757248158643,0.19005591,111140.0,111130.0,0.45828475]
[1757248162763,0.19005591,111140.0,111130.0,0.63825415]
[1757248168626,0.19005591,111140.0,111130.0,0.45828475]
[1757248171666,0.19005591,111140.0,111130.0,0.60720475]
[1757248172998,0.19005591,111140.0,111130.0,0.45828475]
[1757248173206,0.19005591,111140.0,111130.0,0.60720475]
[1757248177419,0.2819719,111140.0,111130.0,0.45322475]
[1757248177599,0.36789275,111140.0,111130.0,0.35]
[1757248177805,0.34367509,111140.0,111130.0,0.2]
[1757248178010,0.37698552,111140.0,111130.0,0.2]
[1757248178219,0.37698552,111140.0,111130.0,0.34892]
[1757248178424,0.40118613,111140.0,111130.0,0.34892]
[1757248179270,0.39488235,111140.0,111130.0,0.34892]
[1757248179733,0.37698273,111140.0,111130.0,0.34892]
[1757248180553,0.40117399,111140.0,111130.0,0.34892]
[1757248181187,0.40117399,111140.0,111130.0,0.2]
[1757248181396,0.394873,111140.0,111130.0,0.34892]
[1757248187528,0.39486011,111140.0,111130.0,0.34892]
[1757248188552,0.36250131,111140.0,111130.0,0.34892]
[1757248200546,0.36250131,111140.0,111130.0,0.35203]
[1757248202117,0.36250131,111140.0,111130.0,0.35404]
[1757248202546,0.34156249,111140.0,111130.0,0.35404]
[1757248202971,0.34156249,111140.0,111130.0,0.50404]
[1757248203642,0.31737123,111140.0,111130.0,0.50404]
[1757248204475,0.34156249,111140.0,111130.0,0.50404]
[1757248205335,0.31737904,111140.0,111130.0,0.50404]
[1757248215932,0.29037239,111140.0,111130.0,0.50404]
[1757248217345,0.1984564,111140.0,111130.0,0.50404]
[1757248217785,0.19005591,111140.0,111130.0,0.50404]
[1757248217954,0.19005591,111140.0,111130.0,0.7602293]
[1757248219633,0.001,111140.0,111130.0,0.7602293]
[1757248220117,0.001,111140.0,111130.0,0.7842793]
[1757248220319,0.001,111140.0,111130.0,0.81128036]
[1757248220970,0.18905502,111150.0,111140.0,0.17995321]
[1757248221180,0.18905502,111150.0,111140.0,0.18492321]